[Event "Kwalificatie NJK A Groningen"]
[Site "Hoogkerk, Netherlands"]
[Date "2023.02.19"]
[Round "6.7"]
[White "Nitrauw, Peter"]
[Black "Adams, Oscar"]
[Result "0-1"]
[TimeControl "55 min. + 10 sec./zet"]
[WhiteElo "1763"]
[BlackElo "1729"]

1. d4 {[%clk 00:55:19]} {[%emt 00:00:01]} f5 {[%clk 00:55:17]} {[%emt
00:00:03]} 2. Nf3 {[%clk 00:55:21]} {[%emt 00:00:08]} Nf6 {[%clk 00:55:24]}
{[%emt 00:00:04]} 3. Bf4 {[%clk 00:55:05]} {[%emt 00:00:26]} c5 {[%clk
00:53:51]} {[%emt 00:01:42]} 4. e3 {[%clk 00:54:50]} {[%emt 00:00:25]} cxd4
{[%clk 00:53:55]} {[%emt 00:00:07]} 5. exd4 {[%clk 00:54:52]} {[%emt 00:00:08]}
e6 {[%clk 00:53:10]} {[%emt 00:00:54]} 6. Nbd2 {[%clk 00:54:07]} {[%emt
00:00:55]} Be7 {[%clk 00:53:02]} {[%emt 00:00:18]} 7. h3 {[%clk 00:52:27]}
{[%emt 00:01:50]} b6 {[%clk 00:52:55]} {[%emt 00:00:18]} 8. Be2 {[%clk
00:51:00]} {[%emt 00:01:36]} Bb7 {[%clk 00:52:56]} {[%emt 00:00:10]} 9. O-O
{[%clk 00:51:04]} {[%emt 00:00:06]} O-O {[%clk 00:53:01]} {[%emt 00:00:04]} 10.
c3 {[%clk 00:46:40]} {[%emt 00:04:34]} Ne4 {[%clk 00:52:53]} {[%emt 00:00:19]}
11. Ne5 {[%clk 00:45:55]} {[%emt 00:00:55]} d6 {[%clk 00:52:16]} {[%emt
00:00:47]} 12. Nef3 {[%clk 00:42:40]} {[%emt 00:03:24]} Qe8 {[%clk 00:47:48]}
{[%emt 00:04:38]} 13. Bh2 {[%clk 00:35:25]} {[%emt 00:07:25]} Nd7 {[%clk
00:45:06]} {[%emt 00:02:52]} 14. Nxe4 {[%clk 00:32:02]} {[%emt 00:03:32]} fxe4
{[%clk 00:45:04]} {[%emt 00:00:13]} 15. Nd2 {[%clk 00:32:06]} {[%emt 00:00:06]}
Qg6 {[%clk 00:43:57]} {[%emt 00:01:17]} 16. Nc4 {[%clk 00:31:27]} {[%emt
00:00:49]} d5 {[%clk 00:41:29]} {[%emt 00:02:38]} 17. Ne5 {[%clk 00:30:52]}
{[%emt 00:00:44]} Nxe5 {[%clk 00:41:33]} {[%emt 00:00:07]} 18. Bxe5 {[%clk
00:30:59]} {[%emt 00:00:03]} Bf6 {[%clk 00:37:42]} {[%emt 00:04:00]} 19. Bd6
{[%clk 00:28:12]} {[%emt 00:02:58]} Rfd8 {[%clk 00:35:28]} {[%emt 00:02:24]} 20.
Bc7 {[%clk 00:28:17]} {[%emt 00:00:05]} Rd7 {[%clk 00:35:34]} {[%emt 00:00:04]}
21. Bf4 {[%clk 00:28:20]} {[%emt 00:00:06]} Bg5 {[%clk 00:32:50]} {[%emt
00:02:55]} 22. Bh5 {[%clk 00:26:49]} {[%emt 00:01:41]} Qh6 {[%clk 00:32:19]}
{[%emt 00:00:41]} 23. Be5 {[%clk 00:24:04]} {[%emt 00:02:55]} Rf8 {[%clk
00:29:54]} {[%emt 00:02:35]} 24. Bg4 {[%clk 00:22:43]} {[%emt 00:01:31]} Ba6
{[%clk 00:28:16]} {[%emt 00:01:48]} 25. Be2 {[%clk 00:21:45]} {[%emt 00:01:08]}
Bc8 {[%clk 00:27:51]} {[%emt 00:00:35]} 26. Bg4 {[%clk 00:20:16]} {[%emt
00:01:39]} Rdf7 {[%clk 00:27:33]} {[%emt 00:00:28]} 27. Bd6 {[%clk 00:19:39]}
{[%emt 00:00:47]} Rd8 {[%clk 00:20:43]} {[%emt 00:07:00]} 28. Be5 {[%clk
00:18:33]} {[%emt 00:01:16]} Bf4 {[%clk 00:20:24]} {[%emt 00:00:29]} 29. Bxf4
{[%clk 00:17:44]} {[%emt 00:00:57]} Qxf4 {[%clk 00:20:11]} {[%emt 00:00:24]} 30.
Qc1 {[%clk 00:17:27]} {[%emt 00:00:27]} Qf6 {[%clk 00:19:52]} {[%emt 00:00:29]}
31. Qe3 {[%clk 00:17:16]} {[%emt 00:00:22]} Rdf8 {[%clk 00:17:52]} {[%emt
00:02:10]} 32. Bh5 {[%clk 00:16:51]} {[%emt 00:00:35]} g6 {[%clk 00:16:05]}
{[%emt 00:01:57]} 33. Be2 {[%clk 00:16:56]} {[%emt 00:00:04]} Qh4 {[%clk
00:14:44]} {[%emt 00:01:31]} 34. Rad1 {[%clk 00:15:00]} {[%emt 00:02:06]} g5
{[%clk 00:13:13]} {[%emt 00:01:42]} 35. g3 {[%clk 00:09:35]} {[%emt 00:05:35]}
Qxh3 {[%clk 00:12:57]} {[%emt 00:00:26]} 36. Qxg5+ {[%clk 00:09:41]} {[%emt
00:00:04]} Rg7 {[%clk 00:12:21]} {[%emt 00:00:46]} 37. Qh5 {[%clk 00:09:36]}
{[%emt 00:00:14]} Qf5 {[%clk 00:11:12]} {[%emt 00:01:19]} 38. Kg2 {[%clk
00:08:48]} {[%emt 00:00:59]} Rg5 {[%clk 00:10:42]} {[%emt 00:00:39]} 39. Qh4
{[%clk 00:08:18]} {[%emt 00:00:40]} Kh8 {[%clk 00:09:34]} {[%emt 00:01:18]} 40.
Qh6 {[%clk 00:07:00]} {[%emt 00:01:29]} Rfg8 {[%clk 00:09:19]} {[%emt
00:00:25]} 41. Rh1 {[%clk 00:06:46]} {[%emt 00:00:24]} e3 {[%clk 00:08:50]}
{[%emt 00:00:39]} 42. Bf3 {[%clk 00:05:05]} {[%emt 00:01:51]} Rf8 {[%clk
00:06:37]} {[%emt 00:02:23]} 43. Kf1 {[%clk 00:03:52]} {[%emt 00:01:23]} e2+
{[%clk 00:06:25]} {[%emt 00:00:22]} 44. Kxe2 {[%clk 00:03:15]} {[%emt
00:00:46]} Qxf3+ {[%clk 00:06:20]} {[%emt 00:00:16]} 45. Kd2 {[%clk 00:03:21]}
{[%emt 00:00:03]} Qxf2+ {[%clk 00:04:37]} {[%emt 00:01:53]} 46. Kc1 {[%clk
00:03:30]} {[%emt 00:00:01]} Qe3+ {[%clk 00:04:31]} {[%emt 00:00:17]} 47. Kb1
{[%clk 00:03:36]} {[%emt 00:00:04]} Qe4+ {[%clk 00:04:26]} {[%emt 00:00:15]} 48.
Ka1 {[%clk 00:03:45]} Qf5 {[%clk 00:04:10]} {[%emt 00:00:26]} 49. g4 {[%clk
00:03:12]} {[%emt 00:00:43]} Rxg4 {[%clk 00:03:48]} {[%emt 00:00:32]} 50. Rh5
{[%clk 00:03:15]} {[%emt 00:00:06]} Qf7 {[%clk 00:03:31]} {[%emt 00:00:27]} 51.
a3 {[%clk 00:02:42]} {[%emt 00:00:44]} Ba6 {[%clk 00:03:17]} {[%emt 00:00:23]}
52. Rh3 {[%clk 00:01:12]} {[%emt 00:01:40]} Bc4 {[%clk 00:02:51]} {[%emt
00:00:36]} 53. Re1 {[%clk 00:01:02]} {[%emt 00:00:20]} Rg6 {[%clk 00:02:41]}
{[%emt 00:00:21]} 54. Qh5 {[%clk 00:01:00]} {[%emt 00:00:12]} Rg1 {[%clk
00:02:32]} {[%emt 00:00:19]} 55. Rxg1 {[%clk 00:00:54]} {[%emt 00:00:15]} Qf1+
{[%clk 00:02:25]} {[%emt 00:00:17]} 56. Qd1 {[%clk 00:00:47]} {[%emt 00:00:17]}
Qxh3 {[%clk 00:02:34]} {[%emt 00:00:02]} 0-1

[Event "Kwalificatie NJK A Groningen"]
[Site "Hoogkerk, Netherlands"]
[Date "2023.02.19"]
[Round "6.8"]
[White "Aarts, Joaquin"]
[Black "De Vries, Arjan"]
[Result "0-1"]
[TimeControl "55 min. + 10 sec./zet"]
[WhiteElo "1804"]
[BlackElo "1645"]

1. d4 {[%clk 00:55:18]} {[%emt 00:00:03]} d5 {[%clk 00:55:01]} {[%emt
00:00:19]} 2. c4 {[%emt 00:00:04]} c5 {[%clk 00:54:26]} {[%emt 00:00:44]} 3.
cxd5 {[%clk 00:53:31]} {[%emt 00:02:03]} Qxd5 {[%clk 00:54:02]} {[%emt
00:00:35]} 4. Nf3 {[%clk 00:53:20]} {[%emt 00:00:21]} cxd4 {[%clk 00:53:43]}
{[%emt 00:00:29]} 5. Nc3 {[%clk 00:49:23]} {[%emt 00:04:07]} Qd8 {[%clk
00:53:11]} {[%emt 00:00:41]} 6. Nxd4 {[%clk 00:46:54]} {[%emt 00:02:40]} e5
{[%clk 00:52:13]} {[%emt 00:01:08]} 7. Nf3 {[%clk 00:45:37]} {[%emt 00:01:27]}
Qxd1+ {[%clk 00:52:17]} {[%emt 00:00:06]} 8. Kxd1 {[%clk 00:45:23]} {[%emt
00:00:24]} Nc6 {[%clk 00:51:27]} {[%emt 00:01:00]} 9. Nb5 {[%clk 00:41:25]}
{[%emt 00:04:08]} Kd8 {[%clk 00:51:29]} {[%emt 00:00:08]} 10. Ng5 {[%clk
00:37:22]} {[%emt 00:04:11]} Nh6 {[%clk 00:50:59]} {[%emt 00:00:41]} 11. Ne4
{[%clk 00:37:22]} {[%emt 00:00:10]} Bf5 {[%clk 00:49:25]} {[%emt 00:01:45]} 12.
Ned6 {[%clk 00:34:34]} {[%emt 00:02:57]} Bxd6 {[%clk 00:48:16]} {[%emt
00:01:19]} 13. Nxd6 {[%clk 00:34:40]} {[%emt 00:00:05]} Ke7 {[%clk 00:45:01]}
{[%emt 00:03:25]} 14. Nxf5+ {[%clk 00:32:55]} {[%emt 00:01:55]} Nxf5 {[%clk
00:45:03]} {[%emt 00:00:07]} 15. e3 {[%clk 00:32:38]} {[%emt 00:00:27]} Rad8+
{[%clk 00:44:56]} {[%emt 00:00:17]} 16. Bd2 {[%clk 00:31:58]} {[%emt 00:00:51]}
Rd7 {[%clk 00:44:04]} {[%emt 00:01:02]} 17. Ke1 {[%clk 00:28:15]} {[%emt
00:03:53]} Rhd8 {[%clk 00:44:06]} {[%emt 00:00:08]} 18. Bc3 {[%clk 00:27:48]}
{[%emt 00:00:36]} e4 {[%clk 00:42:57]} {[%emt 00:01:19]} 19. Be2 {[%clk
00:22:54]} {[%emt 00:05:04]} Nh4 {[%clk 00:40:37]} {[%emt 00:02:30]} 20. Rg1
{[%clk 00:22:00]} {[%emt 00:01:04]} f6 {[%clk 00:40:19]} {[%emt 00:00:29]} 21.
Rd1 {[%clk 00:21:20]} {[%emt 00:00:50]} Ng6 {[%clk 00:40:14]} {[%emt 00:00:15]}
22. Rxd7+ {[%clk 00:20:33]} {[%emt 00:00:57]} Rxd7 {[%clk 00:40:13]} {[%emt
00:00:10]} 23. Bb5 {[%clk 00:19:47]} {[%emt 00:00:56]} Rc7 {[%clk 00:38:43]}
{[%emt 00:01:40]} 24. f3 {[%clk 00:16:43]} {[%emt 00:03:15]} f5 {[%clk
00:38:25]} {[%emt 00:00:27]} 25. f4 {[%clk 00:12:45]} {[%emt 00:04:08]} a6
{[%clk 00:36:54]} {[%emt 00:01:42]} 26. Be2 {[%clk 00:12:29]} {[%emt 00:00:26]}
b5 {[%clk 00:32:36]} {[%emt 00:04:28]} 27. a3 {[%clk 00:12:32]} {[%emt
00:00:07]} Ke6 {[%clk 00:32:32]} {[%emt 00:00:13]} 28. Kf2 {[%clk 00:11:09]}
{[%emt 00:01:34]} Nge7 {[%clk 00:28:49]} {[%emt 00:03:55]} 29. g4 {[%clk
00:09:41]} {[%emt 00:01:36]} g6 {[%clk 00:28:38]} {[%emt 00:00:21]} 30. gxf5+
{[%clk 00:09:14]} {[%emt 00:00:37]} Nxf5 {[%clk 00:28:37]} {[%emt 00:00:11]} 31.
Bg4 {[%clk 00:08:43]} {[%emt 00:00:41]} Nce7 {[%clk 00:28:36]} {[%emt
00:00:11]} 32. h4 {[%clk 00:05:38]} {[%emt 00:03:14]} Nd5 {[%clk 00:28:40]}
{[%emt 00:00:06]} 33. Bxf5+ {[%clk 00:05:36]} {[%emt 00:00:13]} gxf5 {[%clk
00:28:44]} {[%emt 00:00:06]} 34. Rg7 {[%clk 00:04:17]} {[%emt 00:01:28]} Rxg7
{[%clk 00:28:07]} {[%emt 00:00:48]} 35. Bxg7 {[%clk 00:04:26]} {[%emt
00:00:02]} b4 {[%clk 00:28:04]} {[%emt 00:00:13]} 36. h5 {[%clk 00:03:41]}
{[%emt 00:00:53]} b3 {[%clk 00:27:47]} {[%emt 00:00:28]} 37. Bd4 {[%clk
00:03:35]} {[%emt 00:00:16]} Kd6 {[%clk 00:27:27]} {[%emt 00:00:30]} 38. Kg3
{[%clk 00:03:16]} {[%emt 00:00:29]} Kc6 {[%clk 00:27:27]} {[%emt 00:00:11]} 39.
h6 {[%clk 00:03:09]} {[%emt 00:00:16]} Kb5 {[%clk 00:27:11]} {[%emt 00:00:26]}
40. Kh4 {[%clk 00:03:16]} {[%emt 00:00:03]} Kc4 {[%clk 00:27:16]} {[%emt
00:00:05]} 41. Kg5 {[%clk 00:03:20]} {[%emt 00:00:06]} Kd3 {[%clk 00:27:20]}
{[%emt 00:00:06]} 42. Kxf5 {[%clk 00:03:16]} {[%emt 00:00:14]} Nxe3+ {[%clk
00:27:25]} {[%emt 00:00:05]} 43. Bxe3 {[%clk 00:00:59]} {[%emt 00:02:27]} Kxe3
{[%clk 00:27:31]} {[%emt 00:00:03]} 44. Kg5 {[%clk 00:00:20]} {[%emt 00:00:50]}
Kd3 {[%clk 00:27:21]} {[%emt 00:00:20]} 45. f5 {[%clk 00:00:25]} {[%emt
00:00:05]} e3 {[%clk 00:27:26]} {[%emt 00:00:05]} 46. f6 {[%clk 00:00:33]}
{[%emt 00:00:02]} e2 {[%clk 00:27:32]} {[%emt 00:00:04]} 47. f7 {[%clk
00:00:41]} {[%emt 00:00:02]} e1=Q {[%clk 00:27:37]} {[%emt 00:00:05]} 48. f8=Q
{[%clk 00:00:47]} {[%emt 00:00:03]} Qg3+ {[%clk 00:25:10]} {[%emt 00:02:37]} 49.
Kh5 {[%clk 00:00:56]} {[%emt 00:00:02]} Qg6+ {[%clk 00:24:56]} {[%emt
00:00:23]} 50. Kh4 {[%clk 00:01:05]} {[%emt 00:00:02]} Kc2 {[%clk 00:24:44]}
{[%emt 00:00:22]} 51. Qg7 {[%clk 00:00:44]} {[%emt 00:00:30]} Qe4+ {[%clk
00:24:16]} {[%emt 00:00:38]} 52. Kg3 {[%clk 00:00:22]} {[%emt 00:00:33]} Kb1
{[%clk 00:24:08]} {[%emt 00:00:18]} 53. Kf2 {[%clk 00:00:15]} {[%emt 00:00:17]}
Ka2 {[%clk 00:23:42]} {[%emt 00:00:36]} 54. Kg3 {[%clk 00:00:16]} {[%emt
00:00:08]} Qb1 {[%clk 00:22:59]} {[%emt 00:00:53]} 55. Kf4 {[%clk 00:00:21]}
{[%emt 00:00:05]} Qc1+ {[%clk 00:22:52]} {[%emt 00:00:18]} 56. Ke5 {[%clk
00:00:14]} {[%emt 00:00:16]} Qxb2+ {[%clk 00:22:49]} {[%emt 00:00:13]} 57. Ke6
{[%clk 00:00:21]} {[%emt 00:00:04]} Qe2+ {[%clk 00:22:26]} {[%emt 00:00:33]} 58.
Kd7 {[%clk 00:00:18]} {[%emt 00:00:13]} Qb5+ {[%clk 00:21:45]} {[%emt
00:00:51]} 59. Kd6 {[%clk 00:00:16]} {[%emt 00:00:12]} b2 {[%clk 00:21:30]}
{[%emt 00:00:25]} 60. Qxh7 {[%clk 00:00:14]} {[%emt 00:00:12]} b1=Q {[%clk
00:21:05]} {[%emt 00:00:35]} 61. Qg8+ {[%clk 00:00:20]} {[%emt 00:00:04]} Q5b3
{[%clk 00:20:43]} {[%emt 00:00:32]} 62. h7 {[%clk 00:00:24]} {[%emt 00:00:06]}
Q1d3+ {[%clk 00:20:31]} {[%emt 00:00:21]} 63. Ke5 {[%clk 00:00:28]} {[%emt
00:00:06]} Kxa3 {[%clk 00:18:54]} {[%emt 00:01:48]} 64. Qf8+ {[%clk 00:00:17]}
{[%emt 00:00:20]} Qb4 {[%clk 00:18:54]} {[%emt 00:00:10]} 65. h8=Q {[%emt
00:00:06]} Qde4+ {[%clk 00:18:51]} {[%emt 00:00:11]} 66. Kf6 {[%clk 00:00:23]}
{[%emt 00:00:11]} Qf4+ {[%clk 00:18:25]} {[%emt 00:00:35]} 67. Kg7 {[%clk
00:00:28]} {[%emt 00:00:06]} Qfxf8+ {[%clk 00:18:28]} {[%emt 00:00:06]} 0-1

[Event "Kwalificatie NJK A Groningen"]
[Site "Hoogkerk, Netherlands"]
[Date "2023.02.19"]
[Round "6.9"]
[White "Jovanovic, Luka"]
[Black "Staal, Ryan"]
[Result "1/2-1/2"]
[TimeControl "55 min. + 10 sec./zet"]
[WhiteElo "1593"]
[BlackElo "1911"]

1. d4 {[%clk 00:55:13]} {[%emt 00:00:06]} d5 {[%clk 00:55:15]} {[%emt
00:00:06]} 2. Nf3 {[%clk 00:54:57]} {[%emt 00:00:25]} Bf5 {[%clk 00:55:15]}
{[%emt 00:00:10]} 3. Bf4 {[%clk 00:54:58]} {[%emt 00:00:09]} e6 {[%clk
00:55:14]} {[%emt 00:00:12]} 4. e3 {[%clk 00:54:55]} {[%emt 00:00:13]} Nf6
{[%clk 00:55:13]} {[%emt 00:00:10]} 5. c4 {[%clk 00:54:59]} {[%emt 00:00:07]}
c6 {[%clk 00:54:52]} {[%emt 00:00:30]} 6. Qb3 {[%clk 00:54:15]} {[%emt
00:00:55]} Qb6 {[%clk 00:53:20]} {[%emt 00:01:42]} 7. Nc3 {[%clk 00:53:57]}
{[%emt 00:00:28]} Qxb3 {[%clk 00:52:44]} {[%emt 00:00:46]} 8. axb3 {[%clk
00:54:03]} {[%emt 00:00:04]} Nbd7 {[%clk 00:52:12]} {[%emt 00:00:42]} 9. c5
{[%clk 00:53:51]} {[%emt 00:00:21]} Be7 {[%clk 00:52:02]} {[%emt 00:00:20]} 10.
b4 {[%clk 00:53:32]} {[%emt 00:00:30]} O-O {[%clk 00:51:28]} {[%emt 00:00:44]}
11. Be2 {[%clk 00:52:51]} {[%emt 00:00:51]} a6 {[%clk 00:49:44]} {[%emt
00:01:55]} 12. O-O {[%clk 00:52:23]} {[%emt 00:00:37]} Ne4 {[%emt 00:01:47]} 13.
Ra3 {[%clk 00:51:45]} Bg4 {[%clk 00:47:27]} {[%emt 00:01:37]} 14. Rfa1 {[%clk
00:49:23]} {[%emt 00:02:32]} Ra7 {[%clk 00:42:00]} {[%emt 00:05:37]} 15. b5
{[%clk 00:45:55]} {[%emt 00:03:39]} Bxf3 {[%clk 00:40:40]} {[%emt 00:01:29]} 16.
gxf3 {[%clk 00:43:18]} {[%emt 00:02:47]} Nxc3 {[%clk 00:39:57]} {[%emt
00:00:53]} 17. bxc3 {[%clk 00:43:22]} {[%emt 00:00:06]} cxb5 {[%clk 00:38:36]}
{[%emt 00:01:31]} 18. Bxb5 {[%clk 00:43:19]} {[%emt 00:00:14]} Nf6 {[%clk
00:36:08]} {[%emt 00:02:37]} 19. Rb3 {[%clk 00:39:02]} {[%emt 00:04:27]} Rfa8
{[%clk 00:30:45]} {[%emt 00:05:33]} 20. Ba4 {[%clk 00:37:09]} {[%emt 00:02:01]}
Nh5 {[%clk 00:27:23]} {[%emt 00:03:33]} 21. Bc7 {[%clk 00:32:27]} {[%emt
00:04:53]} Rc8 {[%clk 00:22:52]} {[%emt 00:04:41]} 22. Bb6 {[%clk 00:31:33]}
{[%emt 00:01:04]} Raa8 {[%clk 00:22:58]} {[%emt 00:00:04]} 23. Bd7 {[%clk
00:31:17]} {[%emt 00:00:27]} Rf8 {[%clk 00:22:49]} {[%emt 00:00:19]} 24. Ba5
{[%clk 00:28:55]} {[%emt 00:02:32]} Bd8 {[%clk 00:20:08]} {[%emt 00:02:51]} 25.
Rxb7 {[%clk 00:28:18]} {[%emt 00:00:47]} Nf6 {[%clk 00:18:45]} {[%emt
00:01:32]} 26. Bxd8 {[%clk 00:27:40]} {[%emt 00:00:49]} Rfxd8 {[%clk 00:18:40]}
{[%emt 00:00:14]} 27. c6 {[%clk 00:27:25]} {[%emt 00:00:25]} Nxd7 {[%clk
00:17:47]} {[%emt 00:01:03]} 28. cxd7 {[%clk 00:27:09]} {[%emt 00:00:27]} Kf8
{[%clk 00:17:28]} {[%emt 00:00:29]} 29. e4 {[%clk 00:25:10]} {[%emt 00:02:09]}
Ke7 {[%clk 00:16:48]} {[%emt 00:00:49]} 30. exd5 {[%clk 00:25:12]} {[%emt
00:00:07]} exd5 {[%clk 00:16:57]} {[%emt 00:00:02]} 31. Rb6 {[%clk 00:24:50]}
{[%emt 00:00:33]} Rxd7 {[%clk 00:16:12]} {[%emt 00:00:55]} 32. Raxa6 {[%clk
00:24:30]} {[%emt 00:00:29]} Rxa6 {[%clk 00:16:21]} {[%emt 00:00:01]} 33. Rxa6
{[%clk 00:24:24]} {[%emt 00:00:16]} Rc7 {[%clk 00:16:24]} {[%emt 00:00:07]} 34.
Ra3 {[%clk 00:23:55]} {[%emt 00:00:39]} Kf6 {[%clk 00:15:49]} {[%emt 00:00:45]}
35. Kg2 {[%clk 00:23:15]} {[%emt 00:00:51]} Kf5 {[%clk 00:15:49]} {[%emt
00:00:10]} 36. Kg3 {[%clk 00:23:20]} {[%emt 00:00:04]} Rc6 {[%clk 00:15:33]}
{[%emt 00:00:27]} 37. h4 {[%clk 00:20:04]} {[%emt 00:03:25]} Rg6+ {[%clk
00:14:42]} {[%emt 00:01:00]} 38. Kh3 {[%clk 00:19:50]} {[%emt 00:00:25]} Kf4
{[%clk 00:13:09]} {[%emt 00:01:43]} 39. Ra5 {[%clk 00:19:54]} {[%emt 00:00:07]}
Rd6 {[%clk 00:12:19]} {[%emt 00:01:00]} 40. Ra7 {[%clk 00:19:44]} {[%emt
00:00:20]} Rf6 {[%clk 00:12:17]} {[%emt 00:00:12]} 41. Rd7 {[%clk 00:18:20]}
{[%emt 00:01:33]} Rf5 {[%clk 00:11:01]} {[%emt 00:01:27]} 42. Kg2 {[%clk
00:18:06]} {[%emt 00:00:23]} g6 {[%clk 00:09:58]} {[%emt 00:01:13]} 43. Re7
{[%clk 00:17:04]} {[%emt 00:01:09]} Rf6 {[%clk 00:08:49]} {[%emt 00:01:22]} 44.
Rc7 {[%clk 00:15:51]} {[%emt 00:01:23]} Kf5 {[%clk 00:07:35]} {[%emt 00:01:23]}
45. Kg3 {[%clk 00:14:55]} {[%emt 00:01:06]} h5 {[%clk 00:07:09]} {[%emt
00:00:37]} 46. Re7 {[%clk 00:14:26]} {[%emt 00:00:38]} Rc6 {[%clk 00:06:30]}
{[%emt 00:00:50]} 47. Re5+ {[%clk 00:13:46]} {[%emt 00:00:51]} Kf6 {[%clk
00:06:10]} {[%emt 00:00:29]} 48. Rxd5 {[%clk 00:13:36]} {[%emt 00:00:20]} Rxc3
{[%clk 00:06:13]} {[%emt 00:00:07]} 49. Kf4 {[%clk 00:12:21]} {[%emt 00:01:25]}
Rc2 {[%clk 00:05:50]} {[%emt 00:00:34]} 50. Kg3 {[%clk 00:11:55]} {[%emt
00:00:35]} Rc3 {[%clk 00:05:37]} {[%emt 00:00:22]} 51. Re5 {[%clk 00:11:18]}
{[%emt 00:00:48]} Rd3 {[%clk 00:05:13]} {[%emt 00:00:34]} 52. Re4 {[%clk
00:10:14]} {[%emt 00:01:14]} Kf5 {[%clk 00:04:24]} {[%emt 00:00:59]} 53. Kg2
{[%clk 00:09:50]} {[%emt 00:00:27]} Ra3 {[%clk 00:04:13]} {[%emt 00:00:27]} 54.
Re3 {[%clk 00:09:29]} {[%emt 00:00:31]} Ra5 {[%clk 00:04:07]} {[%emt 00:00:16]}
55. Kg3 {[%clk 00:09:20]} {[%emt 00:00:18]} Rd5 {[%clk 00:04:16]} {[%emt
00:00:03]} 56. Rd3 {[%clk 00:09:07]} {[%emt 00:00:22]} f6 {[%clk 00:04:18]}
{[%emt 00:00:09]} 57. Rd1 {[%clk 00:08:04]} {[%emt 00:01:13]} g5 {[%clk
00:03:55]} {[%emt 00:00:33]} 58. Rd2 {[%clk 00:07:49]} {[%emt 00:00:25]} Rd7
{[%clk 00:02:52]} {[%emt 00:01:13]} 59. d5 {[%clk 00:06:59]} {[%emt 00:01:00]}
Ke5 {[%clk 00:02:32]} {[%emt 00:00:30]} 60. d6 {[%clk 00:06:25]} {[%emt
00:00:44]} Rxd6 {[%clk 00:02:27]} {[%emt 00:00:15]} 61. Rxd6 {[%clk 00:06:30]}
{[%emt 00:00:04]} Kxd6 {[%clk 00:02:36]} {[%emt 00:00:02]} 62. hxg5 {[%clk
00:06:06]} {[%emt 00:00:34]} fxg5 {[%clk 00:02:38]} {[%emt 00:00:08]} 63. f4
{[%clk 00:06:12]} {[%emt 00:00:05]} gxf4+ {[%clk 00:02:40]} {[%emt 00:00:08]}
64. Kxf4 {[%clk 00:06:12]} {[%emt 00:00:10]} h4 {[%clk 00:01:41]} {[%emt
00:01:08]} 65. Kg4 {[%clk 00:05:28]} {[%emt 00:00:53]} Ke5 {[%clk 00:01:43]}
{[%emt 00:00:09]} 66. f3 {[%clk 00:05:04]} {[%emt 00:00:34]} h3 67. Kxh3 {[%clk
00:04:59]} Kf4 {[%clk 00:01:53]} 68. Kg2 {[%clk 00:05:06]} {[%emt 00:00:04]}
Kf5 {[%clk 00:02:03]} 69. Kg3 {[%clk 00:05:15]} {[%emt 00:00:01]} Kg5 {[%clk
00:02:12]} 70. f4+ {[%clk 00:05:24]} Kf5 {[%clk 00:02:21]} 71. Kf3 {[%clk
00:05:33]} {[%emt 00:00:01]} Kf6 {[%clk 00:02:31]} 72. Kg4 {[%clk 00:05:42]}
Kg6 {[%clk 00:02:40]} 73. f5+ {[%clk 00:05:51]} Kf6 {[%clk 00:02:49]} {[%emt
00:00:01]} 74. Kf4 {[%clk 00:06:00]} Kf7 {[%clk 00:02:59]} 75. Ke5 {[%clk
00:06:09]} Ke7 {[%clk 00:03:08]} {[%emt 00:00:01]} 76. f6+ {[%clk 00:06:18]}
Kf7 {[%clk 00:03:18]} 77. Kf5 {[%clk 00:06:27]} {[%emt 00:00:01]} Kf8 {[%clk
00:03:27]} 78. Kg6 {[%clk 00:06:30]} {[%emt 00:00:07]} Kg8 {[%clk 00:03:36]}
{[%emt 00:00:01]} 79. Kh6 {[%clk 00:06:35]} {[%emt 00:00:05]} Kf7 {[%clk
00:03:45]} {[%emt 00:00:01]} 80. Kg5 {[%clk 00:06:44]} Kf8 {[%clk 00:03:54]}
{[%emt 00:00:01]} 81. Kg6 {[%clk 00:06:51]} {[%emt 00:00:03]} Kg8 {[%clk
00:04:03]} {[%emt 00:00:01]} 82. f7+ {[%clk 00:07:00]} Kf8 {[%clk 00:04:12]} 83.
Kf6 {[%clk 00:07:09]} {[%emt 00:00:02]} 1/2-1/2